bitfinex-derivatives/quotes_ETHF0:USTF0_20250923
["timestamp","ask_amount","ask_price","bid_price","bid_amount"]
[1758625695660,0.7652,4182.7,4182.6,0.545]
[1758625696252,0.4317,4182.3,4181.9,0.43014]
[1758625696455,0.7651,4181.9,4181.8,0.43016]
[1758625696646,0.3334,4181.8,4181.6,3.63798]
[1758625696842,0.7651,4181.7,4181.6,3.84468]
[1758625697146,0.7651,4181.7,4181.6,4.17298]
[1758625698050,0.7651,4181.7,4181.6,0.2067]
[1758625698051,0.99584802,4181.7,4181.6,0.2067]
[1758625699257,0.99584802,4181.7,4181.6,0.5159]
[1758625700651,0.99584802,4181.7,4181.6,0.2067]
[1758625701154,0.4302,4181.4,4181.0,0.1251]
[1758625701354,0.43023,4181.1,4181.0,0.245]
[1758625701558,0.2209,4180.8,4180.7,0.2045]
[1758625701750,4.19844802,4180.8,4180.7,0.2045]
[1758625701964,4.19850868,4180.8,4180.7,0.2045]
[1758625702257,0.86407,4180.7,4180.6,0.2045]
[1758625702459,1.09487868,4180.7,4180.6,0.2045]
[1758625702850,1.42097868,4180.7,4180.6,0.2045]
[1758625703051,1.42097868,4180.7,4180.6,0.5137]
[1758625703358,1.42097868,4180.7,4180.6,0.2045]
[1758625703959,0.2209,4180.5,4180.4,0.2045]
[1758625704156,1.42099868,4180.5,4180.4,0.7223]
[1758625704461,0.66460868,4180.5,4180.4,1.1526]
[1758625704656,0.44370868,4180.5,4180.4,1.1526]
[1758625704857,0.23080868,4180.5,4180.4,1.1526]
[1758625705061,0.23080868,4180.5,4180.4,0.7223]
[1758625705453,0.23080868,4180.5,4180.4,1.1526]
[1758625706356,0.23080868,4180.5,4180.4,5.39181]
[1758625706557,3.2078,4180.8,4180.7,1.15257]
[1758625706774,0.4302,4181.4,4181.3,0.7223]
[1758625706962,0.2129,4181.4,4181.3,0.7223]
[1758625707660,0.9692,4181.4,4181.3,0.7223]
[1758625707856,1.1901,4181.4,4181.3,0.7223]
[1758625709563,0.7599,4181.4,4181.3,1.15251]
[1758625709763,0.2129,4181.4,4181.3,1.15251]
[1758625711062,0.539,4181.4,4181.3,1.15251]
[1758625711264,0.2129,4181.4,4181.3,1.15251]
[1758625711956,3.5339,4181.9,4181.5,0.1299]
[1758625712154,0.53410617,4181.8,4181.7,0.84327]
[1758625712358,0.53410617,4181.8,4181.7,1.15247]
[1758625712763,0.74700617,4181.8,4181.7,1.15247]
[1758625713460,1.72416617,4181.8,4181.7,0.67517]
[1758625713656,1.29400617,4181.8,4181.7,1.39747]
[1758625715667,0.53410617,4181.8,4181.7,1.39747]
[1758625716171,0.74700617,4181.8,4181.7,1.39747]
[1758625717567,0.53410617,4181.8,4181.7,1.39747]
[1758625718566,0.24372187,4181.8,4181.7,4.60527]
[1758625718772,0.24372187,4181.8,4181.7,8.60527]
[1758625719366,3.2078,4182.6,4181.7,49.6444]
[1758625719569,0.3261,4182.9,4181.7,49.6444]
[1758625719570,0.53485258,4182.5,4182.4,1.1524]
[1758625719866,0.86386,4182.8,4182.7,0.84317]
[1758625720067,1.29474338,4182.8,4182.7,1.15237]
[1758625720261,1.72480338,4182.8,4182.7,1.15237]
[1758625720966,0.53484338,4182.8,4182.7,1.15237]
[1758625721171,0.53484338,4182.8,4182.5,0.1299]
[1758625721172,3.7468,4183.2,4183.1,1.15233]
[1758625721371,4.28144651,4183.2,4183.1,1.15233]
[1758625721866,0.53464651,4183.2,4183.1,1.15233]
[1758625722068,3.9677,4183.7,4183.6,0.4131]
[1758625722264,4.50239505,4183.7,4183.6,0.7223]
[1758625722463,4.93235505,4183.7,4183.6,0.7223]
[1758625722863,4.93235505,4183.7,4183.6,0.4131]
[1758625723068,4.93235505,4183.7,4183.6,0.2045]
[1758625723570,4.93235505,4183.7,4183.6,0.63447]
[1758625724069,5.17608631,4183.7,4183.6,0.63447]
[1758625724374,4.64139126,4183.7,4183.6,0.63447]
[1758625724973,4.64139126,4183.7,4183.6,0.2045]
[1758625727576,1.29408,4183.5,4183.4,1.2274]
[1758625727775,1.53781126,4183.5,4183.4,1.2274]
[1758625728570,1.10783126,4183.5,4183.4,1.4411]
[1758625728768,0.98483126,4183.5,4183.4,1.4411]
[1758625728966,0.67303126,4183.5,4183.4,1.4411]
[1758625729376,0.98483126,4183.5,4183.4,1.4411]
[1758625730275,1.41482126,4183.5,4183.4,1.4411]
[1758625730879,1.53782126,4183.5,4183.4,0.244]
[1758625731077,1.29414,4183.0,4182.9,3.4518]
[1758625731277,1.53787126,4183.0,4182.9,3.4518]
[1758625731480,1.53787126,4183.0,4182.9,4.10235]
[1758625732376,1.53787126,4183.0,4182.9,3.2078]
[1758625732685,1.29419,4182.5,4182.4,3.2078]
[1758625732978,1.53792126,4182.5,4182.4,3.4518]
[1758625733176,0.98483126,4182.5,4182.4,4.2189]
[1758625733384,0.24373126,4182.5,4182.4,4.649]
[1758625733875,0.98483126,4182.5,4182.4,3.9749]
[1758625734075,1.41492126,4182.5,4182.4,3.9749]
[1758625734281,1.10783126,4182.5,4182.4,4.649]
[1758625734480,0.45803126,4182.5,4182.4,4.649]
[1758625734681,0.45803126,4182.5,4182.4,4.2189]
[1758625735082,0.45803126,4182.5,4182.4,4.649]
[1758625735282,0.88812126,4182.5,4182.4,4.649]
[1758625735484,1.19992126,4182.5,4182.4,4.2189]
[1758625736382,1.19992126,4182.5,4182.4,4.649]
[1758625737082,1.19992126,4182.5,4182.4,4.2189]
[1758625737578,1.41492126,4182.5,4182.4,3.9749]
[1758625737778,1.53792126,4182.5,4182.4,4.2189]
[1758625738985,1.41492126,4182.5,4182.4,4.2189]
[1758625739580,1.41492126,4182.5,4182.4,4.649]
[1758625739882,0.24373126,4182.5,4182.4,4.649]
[1758625740079,0.88812126,4182.5,4182.4,4.649]
[1758625740276,0.45803126,4182.5,4182.4,4.649]
[1758625740481,0.24373126,4182.5,4182.4,4.649]
[1758625741380,1.41492126,4182.5,4182.4,4.2189]
[1758625741587,1.53792126,4182.5,4182.4,4.2189]
[1758625741886,1.41492126,4182.5,4182.4,4.649]
[1758625742491,1.41492126,4182.5,4182.4,4.2189]
[1758625742690,1.41492126,4182.5,4182.4,3.9749]
[1758625742878,1.41492126,4182.5,4182.4,4.2189]
[1758625743081,1.17119,4182.5,4182.4,4.649]
[1758625743290,1.41106271,4182.5,4182.4,4.649]
[1758625744291,1.17119,4182.5,4182.4,4.405]
[1758625744492,1.41113459,4182.5,4182.4,4.2189]
[1758625744692,1.41113459,4182.5,4182.4,3.9749]
[1758625744890,1.41113459,4182.5,4182.4,4.2189]
[1758625745187,1.41113459,4182.5,4182.4,3.9749]
[1758625745495,1.17123,4182.1,4182.0,1.19724]
[1758625745698,0.23994459,4182.1,4182.0,1.57184]
[1758625747189,3.2078,4182.7,4182.6,0.2205]
[1758625747395,0.95611,4183.3,4183.2,0.7671]
[1758625747693,0.74177,4183.7,4183.5,0.42998]
[1758625747896,1.49088869,4183.6,4183.5,1.57168]
[1758625748098,1.70588869,4183.6,4183.5,1.57168]
[1758625748395,1.27591869,4183.6,4183.5,1.57168]
[1758625748796,0.53481869,4183.6,4183.5,4.77948]
[1758625748990,0.85922,4184.1,4184.0,0.2205]
[1758625749191,1.70602803,4184.1,4184.0,0.2205]
[1758625749386,0.74930803,4184.1,4184.0,0.7671]
[1758625749595,0.74930803,4184.1,4184.0,0.8977]
[1758625749797,0.53500803,4184.1,4184.0,0.8977]
[1758625750695,0.74930803,4184.1,4184.0,0.8977]
[1758625750994,0.7411,4184.1,4184.0,0.7671]
[1758625751191,0.7411,4184.1,4184.0,0.244]
[1758625751192,1.27588654,4184.1,4184.0,0.244]
[1758625751392,1.27588654,4184.1,4184.0,0.4645]
[1758625751699,1.27588654,4184.1,4184.0,0.7974]
[1758625751995,0.96408654,4184.1,4184.0,1.1417]
[1758625752197,0.0416089,4184.3,4184.1,0.42992]
[1758625752401,0.7827089,4184.3,4184.2,0.7671]
[1758625752599,1.31750373,4184.3,4184.2,0.7671]
[1758625753304,0.3118,4184.7,4184.0,3.5824]
[1758625753600,0.7369,4184.7,4184.6,0.7611]
[1758625753800,1.27157542,4184.7,4184.6,1.19097]
[1758625754804,1.27157542,4184.7,4184.6,0.7611]
[1758625755008,1.27157542,4184.7,4184.6,0.4342]
[1758625755497,0.84647542,4184.7,4184.3,0.3269]
[1758625755703,0.7573,4184.4,4184.3,0.2148]
[1758625756000,0.7573,4184.4,4184.3,0.4588]
[1758625756904,0.7573,4184.4,4184.3,0.7868]
[1758625757094,0.7573,4184.4,4184.3,1.0086]
[1758625757501,0.4327,4184.4,4184.3,1.0086]
[1758625757699,0.97697,4184.7,4184.6,0.4269]
[1758625757902,1.51122001,4184.7,4184.6,0.7549]
[1758625758199,0.2211,4184.7,4184.6,0.9989]
[1758625759196,0.45766863,4184.7,4184.6,0.9989]
[1758625759801,0.23656863,4184.7,4184.6,1.42877]
[1758625760002,0.45766863,4184.7,4184.6,1.42877]
[1758625760203,0.78366863,4184.7,4184.6,1.42877]
[1758625761799,0.23656863,4184.7,4184.6,1.42877]
[1758625765708,0.23656863,4184.7,4184.6,5.42877]
[1758625768798,0.23656863,4184.7,4184.6,1.42877]
[1758625769003,0.04159871,4185.3,4185.2,1.18471]
[1758625769199,0.26269871,4185.3,4185.2,0.97961]
[1758625769405,1.18193,4185.1,4185.0,0.96293]
[1758625769607,1.18193,4185.1,4185.0,1.42873]
[1758625769908,0.7521,4185.1,4185.0,1.42873]
[1758625770503,0.7521,4185.1,4185.0,1.55393]
[1758625771208,0.7521,4185.1,4185.0,0.87893]
[1758625771610,0.7521,4185.1,4185.0,1.42873]
[1758625773409,0.2211,4185.1,4185.0,1.55393]
[1758625773610,0.2211,4185.1,4185.0,4.76173]
[1758625775104,0.04159871,4185.3,4185.2,0.42981]
[1758625775310,0.26269871,4185.3,4185.2,0.85671]
[1758625775511,0.58869871,4185.3,4185.2,1.18471]
[1758625776313,0.04159871,4185.3,4185.2,1.18471]
[1758625776512,0.65087,4185.6,4185.5,0.5521]
[1758625776706,0.97687,4185.6,4185.5,1.1231]
[1758625776907,1.18187,4185.6,4185.5,1.1231]
[1758625777112,1.18187,4185.6,4185.5,0.9979]
[1758625777713,1.71658176,4185.6,4185.5,0.9979]
[1758625779621,1.18189,4185.4,4185.3,0.9629]
[1758625779919,1.18189,4185.4,4185.3,0.9979]
[1758625780120,1.18189,4185.4,4185.3,0.7549]
[1758625780320,1.18189,4185.4,4185.3,0.9979]
[1758625780920,1.41318865,4185.4,4185.3,0.9979]
[1758625781214,0.23129865,4185.4,4185.3,1.4277]
[1758625782420,0.23129865,4185.4,4185.3,42.2277]
[1758625784426,0.42976,4185.7,4185.6,0.42977]
[1758625784634,0.98046,4185.7,4185.6,1.43527]
[1758625784821,0.5507,4185.7,4185.6,1.43527]
[1758625785133,1.00340384,4185.7,4185.6,1.43527]
[1758625785528,0.772,4185.7,4185.6,1.43527]
[1758625787330,1.30741051,4185.7,4185.6,1.43527]
[1758625788333,1.53896885,4185.7,4185.6,1.43527]
[1758625789119,1.30741051,4185.7,4185.6,1.43527]
[1758625789320,1.30741051,4185.7,4185.5,3.3361]
[1758625789321,1.73717051,4185.7,4185.5,3.2078]
[1758625789530,1.73718051,4185.6,4185.5,3.63758]
[1758625789724,1.73718051,4185.6,4185.1,0.42981]
[1758625789725,0.42981,4185.3,4185.1,0.42981]
[1758625789929,1.30741051,4185.2,4185.1,0.97562]
[1758625790331,1.53900443,4185.2,4185.1,1.19232]
[1758625790632,1.53900443,4185.2,4185.1,1.43532]
[1758625791228,1.53900277,4185.2,4185.1,1.43532]
[1758625792430,0.76700277,4185.2,4185.1,1.43532]
[1758625792732,0.23159226,4185.2,4185.1,1.43532]
[1758625794628,1.20177,4185.6,4185.5,1.19228]
[1758625794929,1.53865345,4185.6,4185.5,1.56358]
[1758625795326,1.96842345,4185.6,4185.5,1.43528]
[1758625795531,1.96842345,4185.6,4185.5,0.16171647]
[1758625795726,1.96842345,4185.6,4185.5,0.59149647]
[1758625795931,1.53865345,4185.6,4185.5,0.59149647]
[1758625796739,1.53865345,4185.6,4185.5,0.16171647]
[1758625796945,1.96842345,4185.6,4185.5,0.16171647]
[1758625797239,1.96842345,4185.6,4185.5,0.59149647]
[1758625797443,1.96842345,4185.6,4185.5,0.67278]
[1758625798839,0.772,4185.4,4185.3,0.4298]
[1758625799040,1.43252815,4185.4,4185.3,0.6728]
[1758625799233,1.00273815,4185.4,4185.3,0.6728]
[1758625799633,1.43252815,4185.4,4185.3,0.6728]
[1758625800041,1.00273815,4185.4,4185.3,0.6728]
[1758625800941,1.00273815,4185.4,4185.3,0.4298]
[1758625801142,1.00273815,4185.4,4185.3,0.6728]
[1758625801343,1.00273815,4185.4,4185.1,40.8]
[1758625801344,0.772,4185.3,4185.2,0.42981]
[1758625801643,1.96858973,4185.3,4185.2,0.42981]
[1758625801942,1.20182,4185.1,4185.0,3.63763]
[1758625802131,1.43255836,4185.1,4185.0,3.88063]
[1758625802335,1.43255836,4185.1,4185.0,3.4508]
[1758625803147,0.1261,4185.0,4184.6,0.42987]
[1758625803342,1.20187,4184.6,4184.5,3.2078]
[1758625803543,0.772,4184.1,4184.0,3.63773]
[1758625803748,1.00273836,4184.1,4184.0,3.88073]
[1758625804450,0.56503836,4184.1,4184.0,3.88073]
[1758625804646,0.4604,4185.0,4184.9,0.42984]
[1758625804841,0.4604,4185.0,4184.9,0.67284]
[1758625805044,0.8981,4185.0,4184.9,0.67284]
[1758625805453,0.6768,4185.0,4184.9,0.67284]
[1758625805649,0.4604,4185.0,4184.9,0.67284]
[1758625809153,3.6682,4185.5,4185.4,0.42979]
[1758625809350,3.8846,4185.5,4185.4,0.67279]
[1758625809749,4.1059,4185.5,4185.4,0.67279]
[1758625815951,4.0978,4185.5,4185.4,0.67279]
[1758625816448,0.89,4185.5,4185.4,0.67279]
[1758625818350,0.4604,4185.5,4185.4,0.67279]
[1758625819348,0.4604,4185.5,4185.4,41.47279]
[1758625820655,0.4604,4185.5,4185.4,41.47179]
[1758625823859,0.4604,4185.5,4185.4,45.47179]
[1758625824356,0.4604,4185.5,4185.4,45.22979]
[1758625824553,0.4604,4185.5,4185.4,45.47179]
[1758625827662,0.4604,4185.5,4185.4,45.22979]
[1758625827858,0.4604,4185.5,4185.4,45.47179]
[1758625828960,0.4604,4185.5,4185.4,41.47179]
[1758625829452,0.4604,4185.5,4185.4,41.22979]
[1758625829656,0.8889,4185.5,4185.4,0.67179]
[1758625829856,0.8889,4185.5,4185.4,0.42979]
[1758625830061,5.11206751,4185.5,4185.4,0.67179]
[1758625830272,5.54184751,4185.5,4185.4,0.67179]
[1758625830565,0.7432,4184.8,4184.7,3.63766]
[1758625830761,0.96636751,4184.8,4184.7,3.87966]
[1758625834758,0.96636751,4184.8,4184.7,3.63766]
[1758625834959,0.96636751,4184.8,4184.7,3.87966]
[1758625836269,0.96644923,4184.8,4184.7,3.87966]
[1758625837357,0.96644601,4184.8,4184.7,3.87966]
[1758625838168,0.53794601,4184.8,4184.7,3.87966]
[1758625838470,0.5546,4185.5,4185.4,0.72299]
[1758625838769,0.5546,4185.5,4185.4,4.02619]
[1758625839770,0.5546,4185.5,4185.4,4.17279]
[1758625840469,0.8693,4185.5,4185.4,4.17279]
[1758625841572,0.8693,4185.5,4185.4,3.93079]
[1758625841869,0.8693,4185.5,4185.4,4.17279]
[1758625842668,0.8693,4185.5,4185.4,3.63759]
[1758625842869,4.8693,4185.5,4185.4,3.63759]
[1758625843072,4.8693,4185.5,4185.4,0.67179]
[1758625843573,4.8693,4185.5,4185.4,0.42979]
[1758625843765,4.8693,4185.5,4185.4,0.67179]
[1758625847578,5.40528214,4185.5,4185.4,0.67179]
[1758625849179,5.40528214,4185.5,4185.4,0.42979]
[1758625849478,0.8686,4185.0,4184.9,0.42984]
[1758625849678,0.8686,4185.0,4184.9,0.67184]
[1758625850275,1.08885091,4185.0,4184.9,0.67184]
[1758625850677,1.08885091,4185.0,4184.9,0.42984]
[1758625850978,1.08885091,4185.0,4184.9,0.67184]
[1758625851179,1.08885091,4185.0,4184.9,0.81854]
[1758625851380,0.8686,4185.0,4184.9,0.81854]
[1758625851872,1.08886046,4185.0,4184.9,0.81854]
[1758625852078,0.8686,4185.0,4184.9,0.81854]
[1758625852378,0.6555,4185.0,4184.9,1.05694]
[1758625852882,0.87576734,4185.0,4184.9,1.05694]
[1758625853583,0.65796734,4185.0,4184.9,1.05694]
[1758625854086,0.311,4185.0,4184.9,1.05694]
[1758625854782,3.5188,4185.2,4185.1,0.81492]
[1758625855378,3.5188,4185.2,4185.1,41.61492]
[1758625855780,3.2078,4185.2,4185.1,45.61492]
[1758625855977,0.311,4185.6,4185.5,0.81488]
[1758625856289,0.5288,4185.6,4185.5,0.96518]
[1758625861294,0.311,4185.6,4185.5,1.05688]
[1758625861591,0.5288,4185.6,4185.5,1.05688]
[1758625861890,0.5288,4185.6,4185.5,0.96518]
[1758625863091,0.7419,4185.6,4185.5,0.42978]
[1758625863283,0.4309,4184.6,4184.5,0.72328]
[1758625863485,0.96192968,4184.6,4184.5,0.96528]
[1758625863787,0.96192968,4184.6,4184.5,41.76528]
[1758625864291,0.96192968,4184.6,4184.5,41.52328]
[1758625864500,0.96192968,4184.6,4184.5,0.81858]
[1758625864797,0.96192968,4184.6,4184.5,0.67188]
[1758625865096,0.96192968,4184.6,4184.5,0.81858]
[1758625865791,0.96192968,4184.6,4184.5,0.96528]
[1758625865993,0.74882968,4184.6,4184.5,1.05698]
[1758625867493,0.74882968,4184.6,4184.5,0.96528]
[1758625867793,0.96192968,4184.6,4184.5,0.81858]
[1758625867996,0.96192968,4184.6,4184.5,0.96528]
[1758625871197,0.96186841,4184.6,4184.5,0.96528]
[1758625871692,0.96187526,4184.6,4184.5,0.96528]
[1758625873995,0.96187526,4184.6,4184.5,0.81858]
[1758625874493,0.96187526,4184.6,4184.5,0.67188]
[1758625874688,0.98047526,4184.6,4184.5,0.42988]
[1758625874886,0.98047526,4184.6,4184.5,0.67188]
[1758625876196,0.42989,4184.5,4184.3,3.6377]
[1758625876392,0.93017526,4184.4,4184.3,3.6377]
[1758625876691,1.36006526,4184.4,4184.3,3.4498]
[1758625877001,1.36006526,4184.4,4184.3,3.8797]
[1758625878891,1.36006526,4184.4,4184.3,3.2078]
[1758625879092,1.36006526,4184.4,4184.3,3.4498]
[1758625879992,0.93017526,4184.4,4184.3,3.8797]
[1758625880399,1.36006526,4184.4,4184.3,3.8797]
[1758625881699,1.36006526,4184.4,4184.3,3.4498]
[1758625881894,1.36006526,4184.4,4184.3,3.8797]
[1758625882099,1.36006526,4184.4,4184.3,3.4498]
[1758625883201,1.36006526,4184.4,4184.3,3.2078]
[1758625883403,1.36006526,4184.4,4184.3,3.4498]
[1758625884197,1.36006526,4184.4,4183.4,0.0921]
[1758625884198,1.07477,4184.3,4183.4,0.0921]
[1758625884402,0.4379,4183.5,4183.4,0.3867]
[1758625884604,0.65787526,4183.5,4183.4,0.6287]
[1758625884804,0.65787526,4183.5,4183.4,1.0587]
[1758625885000,0.66332609,4183.5,4183.4,1.0587]
[1758625887408,0.66332609,4183.5,4183.4,0.8167]
[1758625887907,0.66328453,4183.5,4183.4,1.0587]
[1758625888107,0.22538453,4183.5,4183.4,1.0587]
[1758625888703,0.83549,4184.4,4184.3,0.5772]
[1758625889007,0.83549,4184.4,4184.3,0.8192]
[1758625889008,1.36548103,4184.4,4184.3,0.8192]
[1758625889208,0.93559103,4184.4,4184.3,0.8192]
[1758625890406,0.93564897,4184.4,4184.3,0.8192]
[1758625891612,0.93564897,4184.4,4184.3,0.9665]
[1758625892013,0.53004897,4184.4,4184.3,1.0586]
[1758625892207,0.33,4185.0,4184.9,0.72444]
[1758625892408,0.55563552,4185.0,4184.9,0.96644]
[1758625892608,0.75793552,4185.0,4184.9,0.96644]
[1758625892912,1.06253552,4185.0,4184.9,0.67184]
[1758625893212,1.06253552,4185.0,4184.9,0.81914]
[1758625894715,1.06253552,4185.0,4184.9,0.67184]
[1758625894916,1.06253552,4185.0,4184.9,0.242]
[1758625895116,1.06264019,4185.0,4184.9,0.242]
[1758625895717,1.49247019,4185.0,4184.9,0.242]
[1758625895915,1.06264019,4185.0,4184.9,0.67184]
[1758625896417,1.59935399,4185.0,4184.9,0.67184]
[1758625896806,1.59935399,4185.0,4184.9,0.242]
[1758625897215,1.59935399,4185.0,4184.9,0.67184]
[1758625898211,1.59941874,4185.0,4184.9,0.81914]
[1758625899415,2.02924874,4185.0,4184.9,0.81914]
[1758625902223,2.02924874,4185.0,4184.9,0.67184]
[1758625902723,2.02924874,4185.0,4184.9,0.242]
[1758625902918,0.5079,4183.9,4183.8,0.42995]
[1758625903117,0.73370494,4183.9,4183.8,0.96655]
[1758625903316,0.53040494,4183.9,4183.8,41.85865]
[1758625903819,0.13982008,4183.9,4183.8,41.85865]
[1758625904020,0.332,4185.0,4184.9,0.72704]
[1758625904220,0.86893543,4185.0,4184.9,0.96904]
[1758625904519,1.17983543,4185.0,4184.9,0.96904]
[1758625904724,0.97453543,4185.0,4184.9,1.06194]
[1758625904926,0.3109,4185.0,4184.9,1.06194]
[1758625905220,0.1228,4186.0,4185.4,0.72699]
[1758625905221,0.8661,4185.5,4185.4,0.72699]
[1758625905426,1.40298803,4185.5,4185.4,0.96899]
[1758625906224,0.8661,4185.5,4185.4,0.96899]
[1758625906423,0.4219,4185.3,4185.2,0.42981]
[1758625906626,0.7328,4185.3,4185.2,0.67181]
[1758625907025,0.7328,4185.3,4185.2,0.82041]
[1758625907929,0.7328,4185.3,4185.2,0.96901]
[1758625911036,0.7328,4185.3,4185.2,0.82041]
[1758625912430,0.3109,4185.3,4185.2,1.06191]
[1758625913332,0.1333,4185.5,4185.4,0.42979]
[1758625913533,0.3386,4185.5,4185.4,0.72699]
[1758625913928,0.6495,4185.5,4185.4,0.72699]
[1758625914232,0.8661,4185.5,4185.4,0.72699]
[1758625914433,0.8661,4185.5,4185.4,0.42979]
[1758625914633,0.8661,4185.5,4185.4,0.67179]
[1758625915738,0.8661,4185.5,4185.4,0.82039]
[1758625917039,0.8661,4185.5,4185.4,0.67179]
[1758625918839,0.6608,4185.5,4185.2,40.8]
[1758625919038,0.7328,4185.2,4185.1,0.42982]
[1758625919342,0.7328,4185.2,4185.1,0.82042]
[1758625920341,0.7328,4185.2,4185.1,0.67182]
[1758625921143,0.7328,4185.2,4185.1,0.82042]
[1758625921342,0.7328,4185.2,4185.1,0.67182]
[1758625921537,1.16261,4185.2,4185.1,0.67182]
[1758625921740,0.7328,4185.2,4185.1,0.67182]
[1758625921937,0.7328,4185.2,4185.1,0.96902]
[1758625922142,0.3109,4185.2,4185.1,1.06192]
[1758625923334,0.5162,4185.2,4185.1,0.96902]
[1758625924039,0.5162,4185.2,4185.1,1.06192]
[1758625924443,0.5162,4185.2,4185.1,0.96902]
[1758625927240,0.3109,4185.2,4185.1,1.06192]
[1758625928647,0.5162,4185.2,4185.1,0.96902]
[1758625928948,0.5162,4185.2,4185.1,0.82042]
[1758625928949,1.16261,4185.2,4185.1,0.82042]
[1758625929345,1.16261,4185.2,4185.1,0.242]
[1758625929545,0.4219,4184.6,4184.5,40.8]
[1758625929747,0.4219,4184.6,4184.5,41.042]
[1758625929942,0.64420863,4184.6,4184.5,0.1486]
[1758625930142,0.3281,4184.0,4183.9,0.72714]
[1758625930340,0.34510863,4184.0,4183.9,1.06204]
[1758625930544,0.34510863,4184.0,4183.9,42.10105]
[1758625930751,0.65600863,4184.0,4183.9,42.10105]
[1758625930950,0.22230863,4184.0,4183.9,42.10105]
[1758625931146,0.3109,4184.5,4184.4,0.81999]
[1758625931354,0.8556,4184.5,4184.4,0.96909]
[1758625932452,0.8556,4184.5,4184.4,0.5392]
[1758625932650,0.8556,4184.5,4184.4,0.96909]
[1758625933156,1.28548,4184.5,4184.4,0.242]
[1758625933346,0.4337,4184.0,4183.9,41.22994]
[1758625933547,0.64,4184.0,4183.9,0.67194]
[1758625933849,0.1329,4183.5,4183.4,0.2948]
[1758625934053,0.8602,4183.5,4183.4,41.7668]
[1758625935341,0.8602,4183.5,4183.4,41.5248]
[1758625935649,0.3092,4183.4,4182.7,1.70796078]
[1758625935954,0.7273,4183.4,4183.3,0.7248]
[1758625936142,0.7273,4183.4,4183.3,41.7668]
[1758625937655,0.7273,4183.4,4183.3,0.9668]
[1758625938149,0.7273,4183.4,4183.3,0.54984761]
[1758625938345,0.7273,4183.4,4183.3,0.97985761]
[1758625939258,1.1573,4183.4,4183.3,0.01304761]
[1758625939450,1.1573,4183.4,4183.3,0.25504761]
[1758625939957,1.1573,4183.4,4183.3,0.68505761]
[1758625939958,0.7273,4183.4,4183.3,0.68505761]
[1758625940157,0.7273,4183.4,4183.3,0.83235761]
[1758625940353,0.7273,4183.4,4183.3,0.25504761]
[1758625940561,0.7273,4183.4,4183.3,0.44305761]
[1758625940749,0.7273,4183.4,4183.3,0.68505761]
[1758625940950,0.7273,4183.4,4183.3,0.97965761]
[1758625941250,0.5155,4183.4,4183.3,0.97965761]
[1758625941653,0.7374,4183.4,4183.3,0.97965761]
[1758625943152,0.95599288,4183.4,4183.3,0.97965761]
[1758625944663,0.52779288,4183.4,4183.3,1.07175761]
[1758625945360,0.73299288,4183.4,4183.3,0.97965761]
[1758625948660,0.73299288,4183.4,4183.3,1.07175761]
[1758625949064,0.73299288,4183.4,4183.3,0.97965761]
[1758625949961,0.52779288,4183.4,4183.3,1.07175761]
[1758625950472,0.328,4184.0,4183.9,0.72454]
[1758625950663,0.5499,4184.0,4183.9,0.96654]
[1758625950861,0.5499,4184.0,4183.9,0.81924]
[1758625951060,0.8843,4184.0,4183.9,0.242]
[1758625951262,0.8843,4184.0,4183.9,0.25504761]
[1758625951466,0.8843,4184.0,4183.9,0.68498761]
[1758625954367,0.8843,4184.0,4183.9,0.83228761]
[1758625955767,0.8843,4184.0,4183.9,0.68498761]
[1758625956465,1.31423,4184.0,4183.9,0.68498761]
[1758625956672,0.8843,4184.0,4183.9,0.68498761]
[1758625957975,1.31423,4184.0,4183.9,0.44298761]
[1758625958270,1.42051184,4184.0,4183.9,0.44298761]
[1758625959069,1.85044184,4184.0,4183.9,0.44298761]
[1758625959873,1.85044184,4184.0,4183.9,0.01304761]
[1758625960569,0.1254,4183.0,4182.9,0.1473]
[1758625960771,0.8869,4183.0,4182.9,0.242]
[1758625961074,0.8869,4183.0,4182.9,0.67205]
[1758625961274,0.8869,4183.0,4182.9,0.81935]
[1758625961873,0.8869,4183.0,4182.9,0.3893]
[1758625962172,0.8869,4183.0,4182.9,0.81935]
[1758625962375,1.10273426,4183.0,4182.9,0.3893]
[1758625962573,1.53277426,4183.0,4182.5,41.23008]
[1758625962773,0.7615,4182.7,4182.6,0.67208]
[1758625963075,0.97733426,4182.7,4182.6,0.81938]
[1758625963263,0.97733426,4182.7,4182.6,0.3893]
[1758625964274,0.97733426,4182.7,4182.6,0.81938]
[1758625964478,0.97733426,4182.7,4182.6,0.96668]
[1758625967176,0.97736176,4182.7,4182.6,0.96668]
[1758625968583,0.97736176,4182.7,4182.6,0.72468]
[1758625968787,0.97736176,4182.7,4182.6,0.96668]
[1758625970075,0.75546176,4182.7,4182.6,1.05888]
[1758625971284,0.21586176,4182.7,4182.6,5.29796]
[1758625971476,0.3307,4183.1,4183.0,0.81744]
[1758625971781,0.3307,4183.1,4183.0,1.05944]
[1758625971983,0.5505,4183.1,4183.0,1.05944]
[1758625972180,0.5505,4183.1,4183.0,0.96724]
[1758625973281,0.3307,4183.1,4183.0,1.05944]
[1758625975979,0.4561,4183.5,4183.4,0.5776]
[1758625976185,0.4561,4183.5,4183.4,1.0594]
[1758625977288,0.6759,4183.5,4183.4,1.0594]
[1758625977490,0.6759,4183.5,4183.4,0.9672]
[1758625977886,0.8939,4183.5,4183.4,0.7252]
[1758625978094,0.8939,4183.5,4183.4,0.9672]
[1758625978489,0.6759,4183.5,4183.4,0.9672]
[1758625978689,0.6759,4183.5,4183.4,1.0594]
[1758625980393,0.6759,4183.5,4183.4,0.9672]
[1758625980595,0.6759,4183.5,4183.4,1.0594]
[1758625980892,0.6759,4183.5,4183.4,0.9672]
[1758625981596,0.8939,4183.5,4183.4,0.9672]
[1758625982785,0.6759,4183.5,4183.4,0.9672]
[1758625983094,0.5606,4184.0,4183.9,1.19304]